Workbook

Sheet Cover
C5: =Client_Name -> Excel at Monopoly #3
C14: Primary Developer: Tim Heng
C16: General Cover Notes:
C17: Simple expected value calculation for Monopoly properties
C21: Any queries, please e-mail: | G21: tim.heng@sumproduct.com
C22: Website: | G22: www.sumproduct.com

Sheet Sheet1
A1: Expected Values
I2: Houses | M2: Hotels
B3: UK version | C3: US version | D3: Property group | F3: Probability of landing | G3: Rental | H3: Own all properties | I3: 1 | J3: 2 | K3: 3 | L3: 4 | M3: 1 | O3: EV (base rental) | P3: EV (enhanced rental) | Q3: 1 house | R3: 2 houses | S3: 3 houses | T3: 4 houses | U3: 1 Hotel
B4: Old Kent Road | C4: Mediterranean Avenue | D4: Brown | F4: 0.0211521 | G4: 2 | H4: =G4*2 -> 4 | I4: 10 | J4: 30 | K4: 90 | L4: 160 | M4: 250 | O4: =G4*$F4 -> 0.0423042 | P4: =H4*$F4 -> 0.0846084 | Q4: 0.211521 | R4: 0.634563 | S4: 1.903689 | T4: 3.384336 | U4: 5.288025
B5: Whitechapel Road | C5: Baltic Avenue | D5: Brown | F5: 0.0214471 | G5: 4 | H5: =G5*2 -> 8 | I5: 20 | J5: 60 | K5: 180 | L5: 320 | M5: 450 | O5: =G5*$F5 -> 0.0857884 | P5: 0.1715768 | Q5: 0.428942 | R5: 1.286826 | S5: 3.860478 | T5: 6.863072 | U5: 9.651195
B6: The Angel Islington | C6: Oriental Avenue | D6: Light blue | F6: 0.0223843 | G6: 6 | H6: 12 | I6: 30 | J6: 90 | K6: 270 | L6: 400 | M6: 550 | O6: 0.1343058 | P6: 0.2686116 | Q6: 0.671529 | R6: 2.014587 | S6: 6.043761 | T6: 8.95372 | U6: 12.311365
B7: Euston Road | C7: Vermont Avenue | D7: Light blue | F7: 0.022967 | G7: 6 | H7: 12 | I7: 30 | J7: 90 | K7: 270 | L7: 400 | M7: 550 | O7: 0.137802 | P7: 0.275604 | Q7: 0.68901 | R7: 2.06703 | S7: 6.20109 | T7: 9.1868 | U7: 12.63185
B8: Pentonville Road | C8: Connecticut Avenue | D8: Light blue | F8: 0.0227938 | G8: 8 | H8: 16 | I8: 40 | J8: 100 | K8: 300 | L8: 450 | M8: 600 | O8: 0.1823504 | P8: 0.3647008 | Q8: 0.911752 | R8: 2.27938 | S8: 6.83814 | T8: 10.25721 | U8: 13.67628
B9: Pall Mall | C9: St. Charles Place | D9: Pink | F9: 0.0221735 | G9: 10 | H9: 20 | I9: 50 | J9: 150 | K9: 450 | L9: 625 | M9: 750 | O9: 0.221735 | P9: 0.44347 | Q9: 1.108675 | R9: 3.326025 | S9: 9.978075 | T9: 13.8584375 | U9: 16.630125
B10: Whitehall | C10: States Avenue | D10: Pink | F10: 0.0276776 | G10: 10 | H10: 20 | I10: 50 | J10: 150 | K10: 450 | L10: 625 | M10: 750 | O10: 0.276776 | P10: 0.553552 | Q10: 1.38388 | R10: 4.15164 | S10: 12.45492 | T10: 17.2985 | U10: 20.7582
B11: Northumberland Avenue | C11: Virginia Avenue | D11: Pink | F11: 0.0250302 | G11: 12 | H11: 24 | I11: 60 | J11: 180 | K11: 500 | L11: 700 | M11: 900 | O11: 0.3003624 | P11: 0.6007248 | Q11: 1.501812 | R11: 4.505436 | S11: 12.5151 | T11: 17.52114 | U11: 22.52718
B12: Bow Street | C12: St. James Place | D12: Orange | F12: 0.0279762 | G12: 14 | H12: 28 | I12: 70 | J12: 200 | K12: 550 | L12: 750 | M12: 950 | O12: 0.3916668 | P12: 0.7833336 | Q12: 1.958334 | R12: 5.59524 | S12: 15.38691 | T12: 20.98215 | U12: 26.57739
B13: Marlborough Street | C13: Tennessee Avenue | D13: Orange | F13: 0.0293787 | G13: 14 | H13: 28 | I13: 70 | J13: 200 | K13: 550 | L13: 750 | M13: 950 | O13: 0.4113018 | P13: 0.8226036 | Q13: 2.056509 | R13: 5.87574 | S13: 16.158285 | T13: 22.034025 | U13: 27.909765
B14: Vine Street | C14: New York Avenue | D14: Orange | F14: 0.0299169 | G14: 16 | H14: 32 | I14: 80 | J14: 220 | K14: 600 | L14: 800 | M14: 1000 | O14: 0.4786704 | P14: 0.9573408 | Q14: 2.393352 | R14: 6.581718 | S14: 17.95014 | T14: 23.93352 | U14: 29.9169
B15: The Strand | C15: Kentucky Avenue | D15: Red | F15: 0.0279091 | G15: 18 | H15: 36 | I15: 90 | J15: 250 | K15: 700 | L15: 875 | M15: 1050 | O15: 0.5023638 | P15: 1.0047276 | Q15: 2.511819 | R15: 6.977275 | S15: 19.53637 | T15: 24.4204625 | U15: 29.304555
B16: Fleet Street | C16: Indiana Avenue | D16: Red | F16: 0.0271872 | G16: 18 | H16: 36 | I16: 90 | J16: 250 | K16: 700 | L16: 875 | M16: 1050 | O16: 0.4893696 | P16: 0.9787392 | Q16: 2.446848 | R16: 6.7968 | S16: 19.03104 | T16: 23.7888 | U16: 28.54656
B17: Trafalgar Square | C17: Illinois Avenue | D17: Red | F17: 0.0316714 | G17: 20 | H17: 40 | I17: 100 | J17: 300 | K17: 750 | L17: 925 | M17: 1100 | O17: 0.633428 | P17: 1.266856 | Q17: 3.16714 | R17: 9.50142 | S17: 23.75355 | T17: 29.296045 | U17: 34.83854
B18: Leicester Square | C18: Atlantic Avenue | D18: Yellow | F18: 0.0267525 | G18: 22 | H18: 44 | I18: 110 | J18: 330 | K18: 800 | L18: 975 | M18: 1150 | O18: 0.588555 | P18: 1.17711 | Q18: 2.942775 | R18: 8.828325 | S18: 21.402 | T18: 26.0836875 | U18: 30.765375
B19: Coventry Street | C19: Ventnor Avenue | D19: Yellow | F19: 0.0265276 | G19: 22 | H19: 44 | I19: 110 | J19: 330 | K19: 800 | L19: 975 | M19: 1150 | O19: 0.5836072 | P19: 1.1672144 | Q19: 2.918036 | R19: 8.754108 | S19: 21.22208 | T19: 25.86441 | U19: 30.50674
B20: Piccadilly | C20: Marvin Gardens | D20: Yellow | F20: 0.0256527 | G20: 24 | H20: 48 | I20: 120 | J20: 360 | K20: 850 | L20: 1025 | M20: 1200 | O20: 0.6156648 | P20: =H20*$F20 -> 1.2313296 | Q20: =I20*$F20 -> 3.078324 | R20: =J20*$F20 -> 9.234972 | S20: =K20*$F20 -> 21.804795 | T20: =L20*$F20 -> 26.2940175 | U20: =M20*$F20 -> 30.78324
B21: Regent Street | C21: Pacific Avenue | D21: Green | F21: 0.0265632 | G21: 26 | H21: 52 | I21: 130 | J21: 390 | K21: 900 | L21: 1100 | M21: 1275 | O21: 0.6906432 | P21: 1.3812864 | Q21: 3.453216 | R21: 10.359648 | S21: 23.90688 | T21: 29.21952 | U21: 33.86808
B22: Oxford Street | C22: North Carolina Avenue | D22: Green | F22: 0.0260507 | G22: 26 | H22: 52 | I22: 130 | J22: 390 | K22: 900 | L22: 1100 | M22: 1275 | O22: 0.6773182 | P22: 1.3546364 | Q22: 3.386591 | R22: 10.159773 | S22: 23.44563 | T22: 28.65577 | U22: 33.2146425
B23: Bond Street | C23: Pennsylvania Avenue | D23: Green | F23: 0.0247833 | G23: 28 | H23: 56 | I23: 150 | J23: 450 | K23: 1000 | L23: 1200 | M23: 1400 | O23: 0.6939324 | P23: 1.3878648 | Q23: 3.717495 | R23: 11.152485 | S23: 24.7833 | T23: 29.73996 | U23: 34.69662
B24: Park Lane | C24: Park Place | D24: Dark Blue | F24: 0.0216786 | G24: 35 | H24: 70 | I24: 175 | J24: 500 | K24: 1100 | L24: 1300 | M24: 1500 | O24: 0.758751 | P24: 1.517502 | Q24: 3.793755 | R24: 10.8393 | S24: 23.84646 | T24: 28.18218 | U24: 32.5179
B25: Mayfair | C25: Boardwalk | D25: Dark Blue | F25: 0.0260745 | G25: 50 | H25: 100 | I25: 200 | J25: 600 | K25: 1400 | L25: 1700 | M25: 2000 | O25: 1.303725 | P25: 2.60745 | Q25: 5.2149 | R25: 15.6447 | S25: 36.5043 | T25: 44.32665 | U25: 52.149
B26: King's Cross Station | C26: Reading Railroad | D26: Railroads | F26: 0.0293918 | I26: 25 | J26: 50 | K26: 100 | L26: 200 | O26: 0 | P26: 0 | Q26: 0.734795 | R26: 1.46959 | S26: 2.93918 | T26: 5.87836 | U26: 0
B27: Marylebone Station | C27: Pennsylvania Railroad | D27: Railroads | F27: 0.0280497 | I27: 25 | J27: 50 | K27: 100 | L27: 200 | O27: 0 | P27: 0 | Q27: 0.7012425 | R27: 1.402485 | S27: 2.80497 | T27: 5.60994 | U27: 0
B28: Fenchurch St Station | C28: B. & O. Railroad | D28: Railroads | F28: 0.0304137 | I28: 25 | J28: 50 | K28: 100 | L28: 200 | O28: 0 | P28: 0 | Q28: 0.7603425 | R28: 1.520685 | S28: 3.04137 | T28: 6.08274 | U28: 0
B29: Liverpool Street Station | C29: Short Line | D29: Railroads | F29: 0.0241072 | I29: 25 | J29: 50 | K29: 100 | L29: 200 | O29: 0 | P29: 0 | Q29: 0.60268 | R29: 1.20536 | S29: 2.41072 | T29: 4.82144 | U29: 0
B30: Electric Company | C30: Electric Company | D30: Utilities | F30: 0.0260277 | G30: 14 | H30: 70 | O30: 0.3643878 | P30: 1.821939 | Q30: 0 | R30: 0 | S30: 0 | T30: 0 | U30: 0
B31: Water Works | C31: Water Works | D31: Utilities | F31: 0.0278683 | G31: 14 | H31: 70 | O31: 0.3901562 | P31: 1.950781 | Q31: 0 | R31: 0 | S31: 0 | T31: 0 | U31: 0
B33: Property groups
F34: Probability of landing | H34: EV (rent all properties) | I34: 1 house | J34: 2 houses | K34: 3 houses | L34: 4 houses | M34: 1 Hotel
B35: Brown | F35: =SUMIF($D$4:$D$31,$B35,$F$4:$F$31) -> 0.0425992 | H35: =SUMIF($D$4:$D$31,$B35,P$4:P$31) -> 0.2561852 | I35: =SUMIF($D$4:$D$31,$B35,Q$4:Q$31) -> 0.640463 | J35: 1.921389 | K35: 5.764167 | L35: 10.247408 | M35: 14.93922
B36: Light blue | F36: =SUMIF($D$4:$D$31,$B36,$F$4:$F$31) -> 0.0681451 | H36: =SUMIF($D$4:$D$31,$B36,P$4:P$31) -> 0.9089164 | I36: 2.272291 | J36: 6.360997 | K36: 19.082991 | L36: 28.39773 | M36: 38.619495
B37: Pink | F37: 0.0748813 | H37: 1.5977468 | I37: 3.994367 | J37: 11.983101 | K37: 34.948095 | L37: 48.6780775 | M37: 59.915505
B38: Orange | F38: 0.0872718 | H38: 2.563278 | I38: 6.408195 | J38: 18.052698 | K38: 49.495335 | L38: 66.949695 | M38: 84.404055
B39: Red | F39: 0.0867677 | H39: 3.2503228 | I39: 8.125807 | J39: 23.275495 | K39: 62.32096 | L39: 77.5053075 | M39: 92.689655
B40: Yellow | F40: 0.0789328 | H40: 3.575654 | I40: 8.939135 | J40: 26.817405 | K40: 64.428875 | L40: 78.242115 | M40: 92.055355
B41: Green | F41: 0.0773972 | H41: 4.1237876 | I41: 10.557302 | J41: 31.671906 | K41: 72.13581 | L41: 87.61525 | M41: 101.7793425
B42: Dark Blue | F42: 0.0477531 | H42: 4.124952 | I42: 9.008655 | J42: 26.484 | K42: 60.35076 | L42: 72.50883 | M42: 84.6669
B43: Railroads | F43: 0.1119624 | H43: 0 | I43: 2.79906 | J43: 5.59812 | K43: 11.19624 | L43: 22.39248 | M43: 0
B44: Utilities | F44: 0.053896 | H44: 3.77272 | I44: 0 | J44: 0 | K44: 0 | L44: 0 | M44: 0
